fUST/lending_fUST_20240806
["ID","MTS","AMOUNT","RATE_DAILY","PERIOD"]
[334310115,1722940242218,-409.985756,0.00021632,2]
[334310116,1722940242228,-151.0,0.00021906,2]
[334310117,1722940242237,-151.0,0.00021906,2]
[334310118,1722940242247,-660.9629474,0.00021918,30]
[334310119,1722940242256,-2638.84,0.00022,14]
[334310120,1722940242266,-343.93,0.00022,14]
[334310121,1722940242275,-150.112233,0.00022,2]
[334310122,1722940242285,-206.78,0.00022,7]
[334310123,1722940242297,-302.39527296,0.00022,2]
[334310124,1722940242307,-302.36509981,0.00022,2]
[334310125,1722940242317,-332.10698837,0.00022,2]
[334310126,1722940242326,-302.39527296,0.0002222,2]
[334310127,1722940242335,-302.36509981,0.0002222,2]
[334310128,1722940242344,-151.0,0.00022249,7]
[334310129,1722940242354,-302.39527296,0.0002244,2]
[334310130,1722940242363,-302.36509981,0.0002244,2]
[334310131,1722940242372,-302.39527296,0.0002266,2]
[334310132,1722940242381,-302.36509981,0.0002266,2]
[334310133,1722940242390,-846.09943393,0.0002268,2]
[334310134,1722940242400,-449.05861323,0.00022746,2]
[334310135,1722940242409,-302.39527296,0.0002288,2]
[334310136,1722940242418,-302.36509981,0.0002288,2]
[334310137,1722940242428,-684.0,0.00022983,2]
[334310138,1722940242438,-569.90536319,0.00023,2]
[334310139,1722940242447,-337.59667978,0.000231,4]
[334310140,1722940242456,-453.54764972,0.000231,4]
[334310141,1722940242466,-453.54764972,0.0002332,4]
[334310142,1722940242475,-602.00344159,0.00023346,2]
[334310143,1722940242484,-453.54764972,0.0002354,4]
[334310144,1722940242494,-451.96510279,0.0002376,4]
[334310145,1722940242503,-631.3049717,0.00023814,2]
[334310146,1722940242513,-4390.83493264,0.00024,30]
[334310147,1722940242522,-150.112233,0.000244,3]
[334310148,1722940242532,-200.0,0.00024658,15]
[334310149,1722940242541,-380.0,0.00024658,2]
[334310150,1722940242555,-150.112233,0.000247,5]
[334310151,1722940242566,-1854.80349053,0.00025,2]
[334310152,1722940242575,-12467.3965525,0.00025,2]
[334310153,1722940242585,-1250.277661,0.00025,7]
[334310154,1722940242594,-1250.277661,0.00025,7]
[334310155,1722940242604,-1000.0,0.00025,7]
[334310156,1722940242613,-1000.0,0.00025,7]
[334310157,1722940242623,-1000.0,0.00025,7]
[334310158,1722940242632,-1000.0,0.00025,7]
[334310159,1722940242641,-1000.0,0.00025,7]
[334310160,1722940242650,-1000.0,0.00025,7]
[334310161,1722940242659,-1000.0,0.00025,7]
[334310162,1722940242669,-1000.0,0.00025,7]
[334310163,1722940242678,-1000.0,0.00025,7]
[334310164,1722940242687,-1000.0,0.00025,7]
[334310165,1722940242696,-1000.0,0.00025,7]
[334310166,1722940242705,-1000.0,0.00025,7]
[334310167,1722940242715,-1000.0,0.00025,7]
[334310168,1722940242725,-1000.0,0.00025,7]
[334310169,1722940242734,-1000.0,0.00025,7]
[334310170,1722940242743,-1000.0,0.00025,7]
[334310171,1722940242753,-1000.0,0.00025,7]
[334310172,1722940242762,-1000.0,0.00025,7]
[334310173,1722940242771,-1000.0,0.00025,7]
[334310174,1722940242780,-1000.0,0.00025,7]
[334310175,1722940242789,-1000.0,0.00025,7]
[334310176,1722940242804,-1000.0,0.00025,7]
[334310177,1722940242817,-1000.0,0.00025,7]
[334310178,1722940242826,-1000.0,0.00025,7]
[334310179,1722940242835,-1000.0,0.00025,7]
[334310180,1722940242844,-1000.0,0.00025,7]
[334310181,1722940242853,-1000.0,0.00025,7]
[334310182,1722940242863,-1000.0,0.00025,7]
[334310183,1722940242876,-1000.0,0.00025,7]
[334310184,1722940242886,-1000.0,0.00025,7]
[334310185,1722940242895,-1000.0,0.00025,7]
[334310186,1722940242904,-1000.0,0.00025,7]
[334310187,1722940242914,-1000.0,0.00025,7]
[334310188,1722940242923,-1000.0,0.00025,7]
[334310189,1722940242932,-1000.0,0.00025,7]
[334310190,1722940242941,-1000.0,0.00025,7]
[334310191,1722940242950,-1000.0,0.00025,7]
[334310192,1722940242960,-1000.0,0.00025,7]
[334310193,1722940242970,-1000.0,0.00025,7]
[334310194,1722940242980,-1000.0,0.00025,7]
[334310195,1722940242989,-1089.373123,0.00025,7]
[334310196,1722940242999,-1421.28248,0.00025,7]
[334310197,1722940243008,-1421.28248,0.00025,7]
[334310198,1722940243018,-309.19612785,0.00025,2]
[334310199,1722940243028,-4026.98830085,0.00025,30]
[334310200,1722940243037,-192.723592,0.00025,7]
[334310201,1722940243054,-192.723592,0.00025,7]
[334310202,1722940243063,-620.56524858,0.00025005,2]
[334310203,1722940243073,-449.05861323,0.00025712,2]
[334310204,1722940243082,-402.40869281,0.0002598,2]
[334310205,1722940243092,-881.61577024,0.00026029,2]
[334310206,1722940243102,-160.57653845,0.00026053,2]
[334310207,1722940243111,-2387.06678,0.00026082,7]
[334310209,1722940243121,-2387.06678,0.00026082,7]
[334310211,1722940243130,-151.0,0.00026082,7]
[334310213,1722940243140,-151.0,0.00026082,7]
[334310215,1722940243149,-151.0,0.00026082,7]
[334310217,1722940243159,-206.78,0.000262,7]
[334310219,1722940243168,-200.0,0.0002625,2]
[334310221,1722940243177,-2638.84,0.000264,14]
[334310223,1722940243187,-343.93,0.000264,14]
[334310225,1722940243197,-543.739623,0.000264,7]
[334310227,1722940243206,-543.739623,0.000264,7]
[334310229,1722940243216,-2558.274432,0.000264,7]
[334310231,1722940243225,-2558.274432,0.000264,7]
[334310233,1722940243234,-1315.802727,0.000264,7]
[334310235,1722940243244,-1315.802727,0.000264,7]
[334310237,1722940243253,-164.587078,0.00026521,2]
[334310239,1722940243264,-4863.09840034,0.0002661,30]
[334310241,1722940243273,-655.750955,0.0002661,7]
[334310243,1722940243282,-655.750955,0.0002661,7]
[334310245,1722940243292,-194.328469,0.0002661,7]
[334310247,1722940243305,-194.328469,0.0002661,7]
[334310248,1722940243314,-338.977805,0.0002661,7]
[334310251,1722940243324,-338.977805,0.0002661,7]
[334310253,1722940243334,-266.510577,0.00027167,2]
[334310254,1722940243343,-151.0,0.00027167,7]
[334310257,1722940243354,-151.0,0.00027167,7]
[334310258,1722940243363,-151.0,0.00027167,7]
[334310259,1722940243373,-151.0,0.00027167,7]
[334310260,1722940243382,-151.0,0.00027167,7]
[334310262,1722940243392,-151.0,0.00027167,7]
[334310264,1722940243401,-151.0,0.00027167,7]
[334310266,1722940243410,-150.112233,0.000272,5]
[334310268,1722940243419,-150.112233,0.000273,10]
[334310270,1722940243428,-1527.65580348,0.0002739,2]
[334310272,1722940243438,-871.721448,0.00027397,7]
[334310274,1722940243447,-871.721448,0.00027397,7]
[334310276,1722940243457,-409.985756,0.00027397,7]
[334310278,1722940243466,-409.985756,0.00027397,7]
[334310280,1722940243475,-151.0,0.00027397,7]
[334310282,1722940243485,-151.0,0.00027397,7]
[334310284,1722940243495,-933.132862,0.00027397,7]
[334310286,1722940243504,-151.0,0.00027397,7]
[334310288,1722940243513,-933.132862,0.00027397,7]
[334310290,1722940243523,-3004.0,0.00027397,2]
[334310292,1722940243532,-153.0,0.00027397,2]
[334310294,1722940243541,-153.0,0.00027397,2]
[334310296,1722940243553,-153.0,0.00027397,2]
[334310298,1722940243563,-153.0,0.00027397,2]
[334310300,1722940243572,-176.797116,0.00027397,7]
[334310302,1722940243581,-176.797116,0.00027397,7]
[334310304,1722940243591,-176.797116,0.00027397,7]
[334310306,1722940243601,-176.797116,0.00027397,7]
[334310309,1722940243613,-176.797116,0.00027397,7]
[334310310,1722940243623,-176.797116,0.00027397,7]
[334310311,1722940243633,-176.797116,0.00027397,7]
[334310312,1722940243643,-176.797116,0.00027397,7]
[334310313,1722940243653,-176.797116,0.00027397,7]
[334310314,1722940243664,-176.797116,0.00027397,7]
[334310315,1722940243674,-176.797116,0.00027397,7]
[334310316,1722940243683,-176.797116,0.00027397,7]
[334310317,1722940243692,-176.797116,0.00027397,7]
[334310318,1722940243702,-176.797116,0.00027397,7]
[334310319,1722940243720,-29224.74365001,0.000276,2]
[334310320,1722940243729,-151.0,0.000276,7]
[334310321,1722940243740,-151.0,0.000276,7]
[334310322,1722940243749,-273.173467,0.000276,7]
[334310323,1722940243759,-2387.06678,0.000276,7]
[334310324,1722940243768,-2387.06678,0.000276,7]
[334310325,1722940243778,-151.0,0.000276,7]
[334310326,1722940243787,-151.0,0.000276,7]
[334310327,1722940243799,-1250.277661,0.000276,7]
[334310328,1722940243808,-1250.277661,0.000276,7]
[334310329,1722940243817,-176.797116,0.000276,7]
[334310330,1722940243826,-176.797116,0.000276,7]
[334310331,1722940243836,-1421.28248,0.000276,7]
[334310332,1722940243845,-1421.28248,0.000276,7]
[334310333,1722940243854,-192.723592,0.000276,7]
[334310334,1722940243864,-192.723592,0.000276,7]
[334310335,1722940243873,-400.0,0.0002762,2]
[334310336,1722940243886,-318843.26550818,0.00028522,30]
[334310337,1722940244469,-55153.60877218,0.00028522,30]
[334310338,1722940244774,-1500.0,0.00019177,2]
[334310339,1722940244783,-151.0,0.0001977,2]
[334310340,1722940244793,-151.0,0.0001978,2]
[334310341,1722940244805,-151.707734,0.0001999,2]
[334310342,1722940244814,-407425.16485363,0.00028522,30]
[334310343,1722940245288,-7169.86411454,0.00028522,30]
[334310361,1722940246885,-283.58204762,0.00025976,2]
[334310373,1722940404166,3003.43387518,0.00027,120]
[334310376,1722940416451,332.021154,0.00014247,2]
[334310389,1722940924883,2722.8837225,0.00015792,2]
[334310390,1722940925069,200.0,0.00027,120]
[334310391,1722940934574,167.658898,0.00014247,2]
[334310392,1722940969476,230.93,0.00010959,2]
[334310393,1722940984855,12667.8515672,0.00015505,2]
[334310394,1722940988723,369.415789,0.00015505,2]
[334310398,1722941060628,4959.67638378,0.00015954,2]
[334310399,1722941074622,154.79497275,0.00015505,2]
[334310400,1722941104054,192.44,0.00010959,2]
[334310401,1722941114797,160.36,0.00010959,2]
[334310402,1722941125057,801.85,0.00010959,2]
[334310403,1722941137905,1163.02940656,0.00013283,2]
[334310404,1722941159920,306.50051506,0.00013283,2]
[334310405,1722941160611,224.89086422,0.00013283,2]
[334310406,1722941163781,194.60736977,0.00013699,2]
[334310407,1722941164366,154.65203293,0.00013283,2]
[334310408,1722941168419,601.75787471,0.00013283,2]
[334310410,1722941172417,178.30906711,0.00013283,2]
[334310411,1722941176508,47210.01514211,0.00015953,2]
[334310412,1722941179077,1991.94991085,0.00013283,2]
[334310413,1722941197182,733.16618169,0.00015954,2]
[334310414,1722941217148,-300.0,0.00016037,2]
[334310415,1722941217169,-300.0,0.00016037,2]
[334310416,1722941217207,-159.27209445,0.00016038,2]
[334310417,1722941217237,-413.99267103,0.00016038,2]
[334310418,1722941217259,-44.24633541,0.00016038,2]
[334310419,1722941223435,10783.36777634,0.00015594,2]
[334310420,1722941223465,14116.63222366,0.00015594,2]
[334310421,1722941237082,-110.5910853,0.00016038,2]
[334310422,1722941237103,-183.12142007,0.00016038,2]
[334310423,1722941237124,-259.70012615,0.00016095,2]
[334310424,1722941237145,-346.08916442,0.00016095,2]
[334310425,1722941237168,-300.0,0.00016099,2]
[334310426,1722941237190,-300.0,0.00016099,2]
[334310427,1722941237211,-413.72644132,0.000161,2]
[334310428,1722941237240,-1576.92899453,0.000161,3]
[334310431,1722941321425,1163.02940656,0.00015954,2]
[334310432,1722941352352,-194.60736977,0.00016038,2]
[334310433,1722941352373,-154.9825069,0.00016038,2]
[334310434,1722941352395,-1091.57771247,0.00016038,2]
[334310435,1722941352415,-11.7957234,0.00016094,2]
[334310436,1722941362084,-1963.73527,0.00016038,2]
[334310437,1722941365100,-33.15291234,0.00016038,2]
[334310438,1722941365122,-288.2042766,0.00016094,2]
[334310439,1722941365144,-200.0,0.00016094,2]
[334310440,1722941365166,-156.99277567,0.00016095,2]
[334310441,1722941365187,-209.82742749,0.00016095,2]
[334310442,1722941365210,-155.03949507,0.00016095,2]
[334310443,1722941365232,-269.73277317,0.0001611,2]
[334310444,1722941365255,-250.0,0.0001616,2]
[334310445,1722941365282,-250.0,0.00016204,2]
[334310446,1722941365306,-250.0,0.00016249,2]
[334310447,1722941366110,-250.0,0.00016293,2]
[334310448,1722941366133,-250.0,0.00016337,2]
[334310449,1722941366156,-250.0,0.00016382,2]
[334310450,1722941366179,-250.0,0.00016426,2]
[334310451,1722941366202,-250.0,0.0001647,2]
[334310452,1722941366225,-250.0,0.00016515,2]
[334310453,1722941366248,-250.0,0.00016559,2]
[334310454,1722941366271,-250.0,0.00016603,2]
[334310455,1722941366299,-250.0,0.00016648,2]
[334310456,1722941366327,-250.0,0.00016692,2]
[334310457,1722941366350,-250.0,0.00016736,2]
[334310458,1722941366373,-250.0,0.00016781,2]
[334310459,1722941366395,-250.0,0.00016825,2]
[334310460,1722941366420,-250.0,0.00016869,2]
[334310461,1722941366444,-250.0,0.00016914,2]
[334310462,1722941366469,-250.0,0.00016958,2]
[334310463,1722941366492,-250.0,0.00017002,2]
[334310464,1722941366514,-20762.30804091,0.00017019,2]
[334310465,1722941366560,494.3368924,0.00016095,2]
[334310466,1722941377209,156.99277567,0.00016038,2]
[334310467,1722941380082,269.73277317,0.00016095,2]
[334310468,1722941400338,315.420096,0.00014247,2]
[334310547,1722941438920,-513.61347926,0.00017269,2]
[334310549,1722941438930,-1610.90790663,0.00018701,2]
[334310550,1722941438940,-1500.0,0.00018773,2]
[334310551,1722941438951,-1128.93746315,0.00018825,2]
[334310552,1722941438961,-1109.04434069,0.00018845,2]
[334310553,1722941438971,-951.94046237,0.00018909,2]
[334310554,1722941438981,-154.88961185,0.00018969,2]
[334310555,1722941438990,-178.34527745,0.00018969,2]
[334310556,1722941438999,-424.40424813,0.00019155,2]
[334310557,1722941440131,-1370.44482833,0.00019155,2]
[334310558,1722941440141,-424.7108497,0.00019167,2]
[334310559,1722941440151,-2849.31423163,0.00019167,2]
[334310560,1722941440164,-500.0,0.00019176,2]
[334310561,1722941440174,-500.91465747,0.00019176,2]
[334310562,1722941440184,-569.66022554,0.00019176,2]
[334310563,1722941440194,-500.0,0.00019176,2]
[334310564,1722941440204,-339.4314789,0.00019176,2]
[334310565,1722941440213,-500.0,0.00019176,2]
[334310566,1722941440223,-230.51802077,0.00019176,2]
[334310567,1722941440232,-274.72081113,0.00019177,2]
[334310568,1722941440242,-701.58626541,0.00019177,3]
[334310569,1722941440251,-42347.64201934,0.00019177,2]
[334310570,1722941440261,-170.494132,0.00019178,2]
[334310571,1722941440270,-168.452694,0.00019178,2]
[334310572,1722941440280,-164.625443,0.00019255,2]
[334310573,1722941440290,-9643.98087226,0.00019256,2]
[334310574,1722941440313,-2731.53457011,0.00019446,2]
[334310575,1722941440324,-1763.75242219,0.00019451,2]
[334310576,1722941440335,-154.83742071,0.00019451,2]
[334310577,1722941440345,-412.11713438,0.00019509,2]
[334310578,1722941440355,-14224.58114839,0.00019509,2]
[334310579,1722941440365,-45437.6541793,0.00019537,2]
[334310580,1722941440377,-196.54634786,0.00019545,2]
[334310581,1722941440387,-500.0,0.00019545,2]
[334310582,1722941440397,-391.67284868,0.00019545,2]
[334310583,1722941440414,-500.0,0.00019545,2]
[334310584,1722941440427,-500.0,0.00019545,2]
[334310585,1722941440437,-500.0,0.00019545,2]
[334310586,1722941440447,-500.0,0.00019545,2]
[334310587,1722941440458,-500.0,0.00019545,2]
[334310588,1722941440468,-500.0,0.00019545,2]
[334310589,1722941440478,-154.69833824,0.00019547,2]
[334310590,1722941440488,-1000.0,0.0001978,2]
[334310591,1722941440499,-150.112233,0.000198,2]
[334310592,1722941440510,-188.49674279,0.0002,2]
[334310594,1722941440520,-154.65974855,0.0002,2]
[334310596,1722941440531,-154.85276017,0.0002,2]
[334310597,1722941440542,-2395.09747727,0.0002,2]
[334310598,1722941440552,-154.65203293,0.0002,2]
[334310599,1722941440562,-298.64578678,0.0002,2]
[334310600,1722941440572,-427.95722184,0.0002,2]
[334310601,1722941440582,-192.62832604,0.0002,2]
[334310602,1722941440592,-435.0,0.0002,2]
[334310603,1722941440602,-158.94015425,0.0002,2]
[334310604,1722941440612,-174.30843248,0.0002,2]
[334310605,1722941440621,-294.13159854,0.0002,2]
[334310606,1722941440632,-154.65203293,0.0002,2]
[334310607,1722941440642,-154.65203293,0.0002,2]
[334310608,1722941440652,-315.420096,0.00020707,2]
[334310609,1722941440663,-150.112233,0.000209,2]
[334310610,1722941440673,-3574.52184507,0.00020932,2]
[334310611,1722941440683,-16911.56884222,0.00020998,2]
[334310612,1722941440693,-296.9978564,0.00021,2]
[334310614,1722941440703,-1443.89362386,0.00021048,2]
[334310615,1722941440714,-45437.6541793,0.00021068,3]
[334310616,1722941440724,-2731.53457007,0.00021691,2]
[334310617,1722941440734,-176.24730842,0.00021805,2]
[334310618,1722941440744,-660.9629474,0.00021918,30]
[334310619,1722941440754,-160.57653845,0.00022,2]
[334310620,1722941440764,-332.10698837,0.00022,2]
[334310621,1722941440776,-150.112233,0.00022,3]
[334310622,1722941440788,-846.09943393,0.0002268,2]
[334310623,1722941440799,-150.112233,0.000231,2]
[334310624,1722941440809,-369.415789,0.00023258,2]
[334310625,1722941440820,-631.3049717,0.00023814,2]
[334310626,1722941440833,-2731.53457007,0.00023935,2]
[334310627,1722941440843,-4390.83493264,0.00024,30]
[334310628,1722941440855,-150.112233,0.000241,3]
[334310629,1722941440865,-380.0,0.00024658,2]
[334310630,1722941440875,-200.0,0.00024658,15]
[334310631,1722941440885,-4706.65558622,0.00024854,2]
[334310632,1722941440895,-4026.98830085,0.00025,30]
[334310633,1722941440905,-309.19612785,0.00025,2]
[334310634,1722941440915,-620.56524858,0.00025005,2]
[334310635,1722941440924,-150.112233,0.000252,8]
[334310636,1722941440934,-402.40869281,0.00025856,2]
[334310637,1722941440947,-881.61577024,0.00025907,2]
[334310638,1722941440959,-6896.69376362,0.00025976,2]
[334310639,1722941440969,-189.55103082,0.00025976,2]
[334310640,1722941440979,-4181.6719909,0.00025976,2]
[334310641,1722941440990,-1626.04191113,0.00025976,2]
[334310642,1722941440999,-150.112233,0.00026,7]
[334310643,1722941441012,-45437.6541793,0.00026038,3]
[334310644,1722941441024,-2731.53457007,0.0002618,2]
[334310645,1722941441034,-4758.04297857,0.00026185,2]
[334310646,1722941441044,-150.112233,0.000262,9]
[334310647,1722941441055,-150.112233,0.000263,6]
[334310648,1722941441065,-4758.04297857,0.00026413,2]
[334310649,1722941441077,-150.112233,0.000265,8]
[334310650,1722941441087,-4758.04297857,0.00026663,2]
[334310651,1722941441099,-150.112233,0.000267,8]
[334310652,1722941441111,-266.32590117,0.00026964,2]
[334310653,1722941441123,-150.112233,0.00027,6]
[334310654,1722941441135,-4758.04297857,0.00027005,2]
[334310655,1722941441145,-315.420096,0.00027167,2]
[334310656,1722941441159,-150.112233,0.000272,6]
[334310657,1722941441170,-4758.0429786,0.00027371,2]
[334310658,1722941441180,-402.05623603,0.00027397,60]
[334310659,1722941441190,-153.0,0.00027397,2]
[334310660,1722941441200,-150.112233,0.000274,9]
[334310662,1722941441211,-150.112233,0.000275,7]
[334310664,1722941441220,-150.112233,0.000277,8]
[334310665,1722941441231,-150.112233,0.00028,7]
[334310666,1722941441241,-150.112233,0.000282,8]
[334310667,1722941441251,-300.0,0.00028326,2]
[334310668,1722941441263,-617.9399272,0.00028417,2]
[334310669,1722941441274,-2731.53457007,0.00028424,2]
[334310670,1722941441287,-90875.3083585,0.00028484,3]
[334310671,1722941441301,-160.0,0.00028493,10]
[334310672,1722941441313,-151.0,0.00028494,7]
[334310673,1722941441323,-459.025669,0.00028494,7]
[334310674,1722941441333,-459.025669,0.00028494,7]
[334310675,1722941441344,-151.0,0.00028494,7]
[334310676,1722941441354,-151.0,0.00028494,7]
[334310677,1722941441364,-151.0,0.00028494,7]
[334310678,1722941441375,-151.0,0.00028494,7]
[334310680,1722941441385,-151.0,0.00028494,7]
[334310682,1722941441395,-1052.642181,0.00028494,7]
[334310683,1722941441406,-1052.642181,0.00028494,7]
[334310685,1722941441418,-1009.399981,0.00028494,7]
[334310686,1722941441427,-151.0,0.00028494,7]
[334310687,1722941441437,-1009.399981,0.00028494,7]
[334310688,1722941441446,-271.182244,0.00028494,7]
[334310689,1722941441456,-875.194363,0.00028494,7]
[334310690,1722941441467,-271.182244,0.00028494,7]
[334310691,1722941441477,-151.0,0.00028494,7]
[334310692,1722941441486,-2229.96969,0.00028494,7]
[334310693,1722941441497,-875.194363,0.00028494,7]
[334310694,1722941441506,-2229.96969,0.00028494,7]
[334310695,1722941441516,-151.0,0.00028494,7]
[334310696,1722941441526,-151.0,0.00028494,7]
[334310697,1722941441536,-151.0,0.00028494,7]
[334310698,1722941441546,-994.897736,0.00028494,7]
[334310699,1722941441556,-994.897736,0.00028494,7]
[334310700,1722941441566,-286.990029,0.00028494,7]
[334310701,1722941441575,-286.990029,0.00028494,7]
[334310702,1722941441586,-151.0,0.00028494,7]
[334310703,1722941441596,-151.0,0.00028494,7]
[334310704,1722941441606,-90875.3083585,0.00028514,3]
[334310705,1722941441615,-651717.95398455,0.00028524,30]
[334310706,1722941441630,-3062.45863511,0.00028524,30]
[334310707,1722941441990,-2073.27057631,0.00028524,30]
[334310708,1722941442003,-339242.18700403,0.00028524,30]
[334310709,1722941442013,-610.205013,0.00028524,7]
[334310710,1722941442023,-610.205013,0.00028524,7]
[334310711,1722941442033,-151.0,0.00028524,7]
[334310712,1722941442044,-746.50629,0.00028524,7]
[334310713,1722941442053,-746.50629,0.00028524,7]
[334310714,1722941442063,-255.96462213,0.000286,120]
[334310715,1722941442073,-3467.37,0.000286,14]
[334310716,1722941442083,-153.0,0.0002863,2]
[334310717,1722941442093,-153.0,0.0002863,2]
[334310718,1722941442103,-153.0,0.0002863,2]
[334310719,1722941442113,-153.0,0.0002863,2]
[334310720,1722941442124,-4706.65558622,0.0002863,2]
[334310721,1722941442134,-306.8241986,0.0002894,2]
[334310722,1722941442145,-153.0,0.00028982,2]
[334310723,1722941442155,-153.0,0.00028982,2]
[334310724,1722941442165,-153.0,0.00028982,2]
[334310725,1722941442174,-153.0,0.00028982,2]
[334310726,1722941442184,-153.0,0.00028982,2]
[334310727,1722941442194,-153.0,0.00028982,2]
[334310728,1722941442206,-153.0,0.00028982,2]
[334310729,1722941442216,-153.0,0.00028982,2]
[334310730,1722941442225,-153.0,0.00028982,2]
[334310731,1722941442235,-153.0,0.00028982,2]
[334310732,1722941442244,-153.0,0.00028982,2]
[334310733,1722941442255,-153.0,0.00028982,2]
[334310734,1722941442264,-153.0,0.00028982,2]
[334310735,1722941442273,-215.0,0.00029,2]
[334310736,1722941442284,-215.0,0.00029041,2]
[334310737,1722941442300,-155.0,0.0002908,21]
[334310738,1722941442310,-167.658898,0.00029589,2]
[334310739,1722941442322,-47038.65229178,0.00029876,21]
[334310740,1722941442331,-8143.13738087,0.00029876,2]
[334310758,1722941443838,-151.0,0.00028524,7]
[334310759,1722941443848,-3301.26928831,0.00029876,2]
[334310764,1722941447064,-500.0,0.00025902,2]
[334310776,1722941521863,1500.0,0.00017019,2]
[334310781,1722941528024,1794.84907646,0.00017019,2]
[334310783,1722941530840,2475.11681243,0.00017019,2]
[334310784,1722941534623,549.78035227,0.00017019,2]
[334310809,1722941784656,9643.98087226,0.00015954,2]
[334310810,1722941823161,1758.82902607,0.00015954,2]
[334310811,1722941874192,20000.0,0.00027,120]
[334310812,1722941876003,1763.75242219,0.00015954,2]
[334310813,1722941910722,163.276898,0.00014247,2]
[334310814,1722941916090,1227.91208249,0.00015954,2]
[334310815,1722941925835,951.94046237,0.00015954,2]
[334310816,1722941954220,1845.6322343,0.00016094,10]
[334310824,1722942214439,23148.0445019,0.000181,4]
[334310831,1722942390153,-176.92523105,0.000166,2]
[334310832,1722942435102,-559.16597695,0.000166,2]
[334310833,1722942435124,-314.80476,0.00016626,2]
[334310834,1722942435381,-1190.6080579,0.00017111,2]
[334310835,1722942435407,-300.0,0.00017237,2]
[334310836,1722942435431,-4765.40890854,0.00017238,2]
[334310837,1722942453152,-171.9056269,0.00017238,2]
[334310838,1722942456865,268.107081,0.00014247,2]
[334310840,1722942524840,189.82749556,0.00014247,2]
[334310842,1722942547085,-1517.16869857,0.00017238,2]
[334310843,1722942562179,8068.28438654,0.000161,2]
[334310844,1722942562198,4837.84222902,0.000161,2]
[334310845,1722942562226,15042.06542344,0.000161,2]
[334310846,1722942568107,-16795.507961,0.000161,2]
[334310847,1722942568130,-18445.51676599,0.00017238,2]
[334310920,1722942638060,-1109.04434069,0.00017379,2]
[334310922,1722942638069,-300.0,0.00018096,2]
[334310924,1722942638078,-169.11394,0.00018234,2]
[334310925,1722942638087,-169.11394,0.00018284,2]
[334310926,1722942638097,-169.11394,0.00018334,2]
[334310927,1722942638106,-169.11394,0.00018384,2]
[334310928,1722942638115,-169.11394,0.00018434,2]
[334310929,1722942638125,-169.11394,0.00018484,2]
[334310930,1722942638134,-169.11394,0.00018534,2]
[334310931,1722942638143,-169.11394,0.00018584,2]
[334310932,1722942638152,-169.11394,0.00018634,2]
[334310933,1722942638162,-169.11394,0.00018684,2]
[334310934,1722942638171,-4125.46228196,0.00018701,2]
[334310935,1722942638181,-3660.37790842,0.00018701,2]
[334310936,1722942638191,-169.11394,0.00018734,2]
[334310937,1722942638200,-500.0,0.00018772,2]
[334310938,1722942638210,-500.0,0.00018772,2]
[334310939,1722942638219,-500.0,0.00018772,2]
[334310940,1722942638229,-500.0,0.00018772,2]
[334310941,1722942638238,-500.0,0.00018772,2]
[334310942,1722942638247,-500.0,0.00018772,2]
[334310943,1722942638257,-500.0,0.00018772,2]
[334310944,1722942638267,-500.0,0.00018772,2]
[334310945,1722942638276,-248.46766945,0.00018772,2]
[334310946,1722942638286,-238.87106789,0.00018772,2]
[334310947,1722942638297,-500.0,0.00018772,2]
[334310948,1722942638306,-500.0,0.00018772,2]
[334310949,1722942638315,-500.0,0.00018772,2]